[Event "*** Titled Tuesday Blitz"]
[Site "Chess.com"]
[Date "2020.04.07"]
[Round "4"]
[White "Sn00pPawn"]
[Black "Vadim_Biliy"]
[Result "0-1"]
[WhiteElo "1843"]
[BlackElo "2252"]
[TimeControl "180+1"]
[EndTime "13:41:34 PDT"]
[Termination "Vadim_Biliy won on time"]

1. e4 {[%clk 0:03:00.9]} 1... d6 {[%clk 0:02:59.2]} 2. d4 {[%clk 0:02:58.1]}
2... Nf6 {[%clk 0:02:58.9]} 3. Nc3 {[%clk 0:02:58.6]} 3... g6 {[%clk 0:02:58]}
4. h4 {[%clk 0:02:58.9]} 4... h5 {[%clk 0:02:53.1]} 5. Be3 {[%clk 0:02:58.9]}
5... c6 {[%clk 0:02:52.3]} 6. f3 {[%clk 0:02:57.1]} 6... b5 {[%clk 0:02:51.5]}
7. a3 {[%clk 0:02:56.5]} 7... Nbd7 {[%clk 0:02:50.1]} 8. Qd2 {[%clk 0:02:54.3]}
8... Nb6 {[%clk 0:02:49]} 9. d5 {[%clk 0:02:35.5]} 9... cxd5 {[%clk 0:02:28.5]}
10. Bxb5+ {[%clk 0:02:33.8]} 10... Bd7 {[%clk 0:02:28.5]} 11. Bxd7+ {[%clk
0:02:19.1]} 11... Qxd7 {[%clk 0:02:27.9]} 12. exd5 {[%clk 0:02:18.8]} 12... Nc4
{[%clk 0:02:23.1]} 13. Qc1 {[%clk 0:02:15.7]} 13... Nxe3 {[%clk 0:02:22.5]} 14.
Qxe3 {[%clk 0:02:16.5]} 14... Bh6 {[%clk 0:02:20.9]} 15. Qd3 {[%clk 0:02:05.4]}
15... Rb8 {[%clk 0:02:18.8]} 16. Rb1 {[%clk 0:01:47]} 16... O-O {[%clk
0:02:16.6]} 17. Nge2 {[%clk 0:01:36.3]} 17... Rfc8 {[%clk 0:02:09.5]} 18. O-O
{[%clk 0:01:34.6]} 18... Rc5 {[%clk 0:02:05.7]} 19. b4 {[%clk 0:00:49.6]} 19...
Rc7 {[%clk 0:01:59.6]} 20. Nd4 {[%clk 0:00:49.6]} 20... Rbc8 {[%clk 0:01:51]}
21. Ncb5 {[%clk 0:00:31.2]} 21... Rb7 {[%clk 0:01:33.4]} 22. c4 {[%clk
0:00:30.5]} 22... a6 {[%clk 0:01:09.8]} 23. Nc3 {[%clk 0:00:30.3]} 23... Rbc7
{[%clk 0:01:08.7]} 24. Nc6 {[%clk 0:00:30.3]} 24... e6 {[%clk 0:00:54.7]} 25.
Rfe1 {[%clk 0:00:20.1]} 25... e5 {[%clk 0:00:50.1]} 26. Ne4 {[%clk 0:00:17.8]}
26... Nxe4 {[%clk 0:00:47.5]} 27. Qxe4 {[%clk 0:00:18.2]} 27... f5 {[%clk
0:00:47.4]} 28. Qd3 {[%clk 0:00:17.8]} 28... Re8 {[%clk 0:00:39.1]} 29. g3
{[%clk 0:00:16.8]} 29... Qg7 {[%clk 0:00:35.2]} 30. c5 {[%clk 0:00:13.4]} 30...
Rd7 {[%clk 0:00:19.8]} 31. Qxa6 {[%clk 0:00:12.7]} 31... dxc5 {[%clk 0:00:19]}
32. bxc5 {[%clk 0:00:05.6]} 32... Rxd5 {[%clk 0:00:18.6]} 33. Rb2 {[%clk
0:00:05.6]} 33... e4 {[%clk 0:00:17.8]} 34. Rb7 {[%clk 0:00:05.3]} 34... Qf6
{[%clk 0:00:14.4]} 35. Nb4 {[%clk 0:00:03.7]} 35... Qxa6 {[%clk 0:00:13.6]} 36.
Nxa6 {[%clk 0:00:03.6]} 36... e3 {[%clk 0:00:11.7]} 37. Kf1 {[%clk 0:00:03.2]}
37... Rd2 {[%clk 0:00:09.4]} 38. Re2 {[%clk 0:00:02.7]} 38... Rd1+ {[%clk
0:00:09]} 39. Re1 {[%clk 0:00:02.9]} 39... Rd2 {[%clk 0:00:08.3]} 40. Re2 {[%clk
0:00:02.9]} 40... Rd1+ {[%clk 0:00:08.5]} 41. Re1 {[%clk 0:00:03.1]} 41... e2+
{[%clk 0:00:07.9]} 42. Kf2 {[%clk 0:00:03.1]} 42... Be3+ {[%clk 0:00:07.9]} 43.
Kxe2 {[%clk 0:00:02.6]} 43... Rxe1+ {[%clk 0:00:06.6]} 44. Kxe1 {[%clk 0:00:01]}
44... Bxc5+ {[%clk 0:00:07.1]} 0-1

[Event "*** Titled Tuesday Blitz"]
[Site "Chess.com"]
[Date "2020.04.07"]
[Round "4"]
[White "Rsnr"]
[Black "Hikaru"]
[Result "0-1"]
[WhiteElo "2814"]
[BlackElo "3266"]
[TimeControl "180+1"]
[EndTime "13:41:35 PDT"]
[Termination "Hikaru won by resignation"]

1. d4 {[%clk 0:03:00.9]} 1... Nf6 {[%clk 0:02:57.4]} 2. c4 {[%clk 0:03:01.5]}
2... e6 {[%clk 0:02:57.2]} 3. Nf3 {[%clk 0:03:01.9]} 3... d5 {[%clk 0:02:55.7]}
4. g3 {[%clk 0:03:02.3]} 4... Be7 {[%clk 0:02:55.6]} 5. Bg2 {[%clk 0:03:02.7]}
5... O-O {[%clk 0:02:56.3]} 6. O-O {[%clk 0:03:03.4]} 6... dxc4 {[%clk
0:02:56.2]} 7. Qc2 {[%clk 0:03:04]} 7... a6 {[%clk 0:02:56.8]} 8. a4 {[%clk
0:03:04.5]} 8... Bd7 {[%clk 0:02:56.1]} 9. Rd1 {[%clk 0:03:05.1]} 9... Bc6
{[%clk 0:02:44.9]} 10. Bg5 {[%clk 0:03:05.4]} 10... b5 {[%clk 0:02:35.7]} 11.
Bxf6 {[%clk 0:03:05.6]} 11... Bxf6 {[%clk 0:02:36.6]} 12. Nc3 {[%clk 0:03:06.1]}
12... b4 {[%clk 0:02:32.1]} 13. Ne4 {[%clk 0:02:58.9]} 13... Bxe4 {[%clk
0:02:05.9]} 14. Qxe4 {[%clk 0:02:59.8]} 14... Ra7 {[%clk 0:02:06.6]} 15. Ne5
{[%clk 0:02:55]} 15... c5 {[%clk 0:02:04.7]} 16. dxc5 {[%clk 0:02:14.5]} 16...
Qc7 {[%clk 0:02:03.5]} 17. Nxc4 {[%clk 0:02:15.1]} 17... Qxc5 {[%clk 0:01:59.4]}
18. Rac1 {[%clk 0:02:15.6]} 18... Rc8 {[%clk 0:01:46.2]} 19. e3 {[%clk
0:01:47.2]} 19... Rac7 {[%clk 0:01:40.8]} 20. b3 {[%clk 0:01:29.1]} 20... Nd7
{[%clk 0:01:35.5]} 21. h4 {[%clk 0:01:25.4]} 21... Qe7 {[%clk 0:01:32.6]} 22.
Qb1 {[%clk 0:01:15.1]} 22... Nc5 {[%clk 0:01:23.3]} 23. Nd6 {[%clk 0:00:54.5]}
23... Rb8 {[%clk 0:01:08.3]} 24. Ne4 {[%clk 0:00:54.4]} 24... Bc3 {[%clk
0:01:08.8]} 25. Nxc5 {[%clk 0:00:53.2]} 25... Rxc5 {[%clk 0:01:06.9]} 26. Qd3
{[%clk 0:00:41.7]} 26... a5 {[%clk 0:01:07]} 27. Qd7 {[%clk 0:00:40.3]} 27...
Kf8 {[%clk 0:01:05.7]} 28. Rd3 {[%clk 0:00:38.5]} 28... g6 {[%clk 0:01:02.5]}
29. Rcd1 {[%clk 0:00:38]} 29... Rc7 {[%clk 0:01:00.4]} 30. Qxe7+ {[%clk
0:00:38]} 30... Kxe7 {[%clk 0:01:01.3]} 31. Bf1 {[%clk 0:00:30.5]} 31... Be5
{[%clk 0:01:00.2]} 32. R3d2 {[%clk 0:00:25.6]} 32... Rbc8 {[%clk 0:00:59.2]} 33.
Bb5 {[%clk 0:00:21.6]} 33... Rc3 {[%clk 0:00:51.1]} 34. Rd7+ {[%clk 0:00:14.8]}
34... Kf6 {[%clk 0:00:51.6]} 35. Bc4 {[%clk 0:00:15.6]} 35... Bc7 {[%clk
0:00:28.2]} 36. g4 {[%clk 0:00:10.4]} 36... h6 {[%clk 0:00:28.3]} 37. Kg2 {[%clk
0:00:05.7]} 37... Rc2 {[%clk 0:00:21.1]} 38. R1d2 {[%clk 0:00:04.7]} 38... Rxd2
{[%clk 0:00:20.6]} 39. Rxd2 {[%clk 0:00:05.6]} 39... Ke7 {[%clk 0:00:20.5]} 40.
Rd3 {[%clk 0:00:05.5]} 40... Be5 {[%clk 0:00:19.3]} 41. f4 {[%clk 0:00:05.4]}
41... Bc3 {[%clk 0:00:19.3]} 42. Bb5 {[%clk 0:00:05.3]} 42... Rc7 {[%clk
0:00:19.5]} 43. Kf3 {[%clk 0:00:04.9]} 43... h5 {[%clk 0:00:19.9]} 44. gxh5
{[%clk 0:00:03.6]} 44... gxh5 {[%clk 0:00:20.8]} 45. Bc4 {[%clk 0:00:02.9]}
45... Be1 {[%clk 0:00:20.4]} 46. f5 {[%clk 0:00:02.9]} 46... Bxh4 {[%clk
0:00:17.3]} 47. fxe6 {[%clk 0:00:03.5]} 47... fxe6 {[%clk 0:00:17.6]} 48. Rd4
{[%clk 0:00:04.4]} 48... Bf6 {[%clk 0:00:17.8]} 49. Re4 {[%clk 0:00:02.8]} 49...
Rc6 {[%clk 0:00:18.4]} 50. Bb5 {[%clk 0:00:02.5]} 50... Rc5 {[%clk 0:00:18.4]}
51. Bc4 {[%clk 0:00:02.9]} 51... Rf5+ {[%clk 0:00:18.5]} 52. Kg3 {[%clk
0:00:03.1]} 52... Be5+ {[%clk 0:00:17.4]} 53. Kh4 {[%clk 0:00:03]} 53... Kd6
{[%clk 0:00:17.3]} 54. Kh3 {[%clk 0:00:02.9]} 54... Rf2 {[%clk 0:00:17.5]} 55.
Rf4 {[%clk 0:00:02]} 0-1

[Event "*** Titled Tuesday Blitz"]
[Site "Chess.com"]
[Date "2020.04.07"]
[Round "4"]
[White "Firegrizzly"]
[Black "Shield12"]
[Result "1/2-1/2"]
[WhiteElo "2607"]
[BlackElo "2923"]
[TimeControl "180+1"]
[EndTime "13:41:35 PDT"]
[Termination "Game drawn by stalemate"]

1. e4 {[%clk 0:03:00.9]} 1... e5 {[%clk 0:03:00]} 2. Nf3 {[%clk 0:02:59.8]} 2...
Nc6 {[%clk 0:03:00.3]} 3. Bc4 {[%clk 0:02:58.8]} 3... Bc5 {[%clk 0:03:00.1]} 4.
c3 {[%clk 0:02:57.7]} 4... Nf6 {[%clk 0:02:59.9]} 5. d3 {[%clk 0:02:57.9]} 5...
a6 {[%clk 0:02:59.3]} 6. a4 {[%clk 0:02:56.4]} 6... Ba7 {[%clk 0:02:58.6]} 7.
O-O {[%clk 0:02:55.2]} 7... d6 {[%clk 0:02:58.5]} 8. b4 {[%clk 0:02:51.1]} 8...
Ne7 {[%clk 0:02:57.8]} 9. Qb3 {[%clk 0:02:44.3]} 9... O-O {[%clk 0:02:54.6]} 10.
Bg5 {[%clk 0:02:39.4]} 10... b5 {[%clk 0:02:29.4]} 11. axb5 {[%clk 0:02:32.8]}
11... axb5 {[%clk 0:02:28.9]} 12. Bxb5 {[%clk 0:02:18.5]} 12... Bxf2+ {[%clk
0:02:26.8]} 13. Rxf2 {[%clk 0:02:18.7]} 13... Rxa1 {[%clk 0:02:27.7]} 14. Qb2
{[%clk 0:02:18.9]} 14... Ra8 {[%clk 0:02:22.5]} 15. Bxf6 {[%clk 0:02:18.5]}
15... gxf6 {[%clk 0:02:22.4]} 16. Nbd2 {[%clk 0:02:14.3]} 16... f5 {[%clk
0:02:21.5]} 17. d4 {[%clk 0:02:09.3]} 17... Ng6 {[%clk 0:02:08.6]} 18. Bc6
{[%clk 0:02:01]} 18... Rb8 {[%clk 0:02:08.1]} 19. exf5 {[%clk 0:01:48.3]} 19...
Bxf5 {[%clk 0:02:07.4]} 20. Ne4 {[%clk 0:01:36.9]} 20... Rb6 {[%clk 0:01:42.5]}
21. Ng3 {[%clk 0:01:35.8]} 21... Bg4 {[%clk 0:01:34.4]} 22. b5 {[%clk
0:01:31.7]} 22... f5 {[%clk 0:01:04.5]} 23. Qd2 {[%clk 0:01:22.6]} 23... Bxf3
{[%clk 0:00:59.7]} 24. Rxf3 {[%clk 0:01:19.7]} 24... f4 {[%clk 0:00:55.9]} 25.
Ne4 {[%clk 0:01:16.5]} 25... Kg7 {[%clk 0:00:51.8]} 26. c4 {[%clk 0:01:11]}
26... Qe7 {[%clk 0:00:46]} 27. c5 {[%clk 0:01:03.4]} 27... dxc5 {[%clk
0:00:46.2]} 28. dxc5 {[%clk 0:01:03.1]} 28... Rbb8 {[%clk 0:00:46.4]} 29. Rd3
{[%clk 0:01:01.5]} 29... Rfd8 {[%clk 0:00:45.6]} 30. Bd7 {[%clk 0:00:58.7]}
30... Nf8 {[%clk 0:00:43.5]} 31. c6 {[%clk 0:00:57.2]} 31... Rxb5 {[%clk
0:00:42.5]} 32. g3 {[%clk 0:00:55.3]} 32... Kh8 {[%clk 0:00:39.6]} 33. gxf4
{[%clk 0:00:54.5]} 33... exf4 {[%clk 0:00:39.7]} 34. Qxf4 {[%clk 0:00:54]} 34...
Ng6 {[%clk 0:00:38.9]} 35. Qf6+ {[%clk 0:00:52.2]} 35... Qxf6 {[%clk 0:00:38.1]}
36. Nxf6 {[%clk 0:00:53.1]} 36... Ne5 {[%clk 0:00:36.4]} 37. Rh3 {[%clk
0:00:50.1]} 37... Kg7 {[%clk 0:00:34.9]} 38. Ne8+ {[%clk 0:00:47.6]} 38... Rxe8
{[%clk 0:00:33.4]} 39. Bxe8 {[%clk 0:00:47]} 39... Rb2 {[%clk 0:00:33.5]} 40.
Rg3+ {[%clk 0:00:46.2]} 40... Kf6 {[%clk 0:00:33.5]} 41. Rg2 {[%clk 0:00:44.4]}
41... Rb1+ {[%clk 0:00:31.6]} 42. Kf2 {[%clk 0:00:44.2]} 42... Ke7 {[%clk
0:00:32.5]} 43. Bd7 {[%clk 0:00:43]} 43... Rb2+ {[%clk 0:00:31.6]} 44. Kg3
{[%clk 0:00:41.4]} 44... Rxg2+ {[%clk 0:00:32.5]} 45. Kxg2 {[%clk 0:00:42]}
45... Nxd7 {[%clk 0:00:33.4]} 46. cxd7 {[%clk 0:00:41.9]} 46... Kxd7 {[%clk
0:00:34.3]} 47. Kf3 {[%clk 0:00:41.8]} 47... Ke6 {[%clk 0:00:34.2]} 48. Ke4
{[%clk 0:00:41.8]} 48... h5 {[%clk 0:00:34]} 49. Kd4 {[%clk 0:00:38.7]} 49... h4
{[%clk 0:00:32.5]} 50. Ke4 {[%clk 0:00:38.5]} 50... h3 {[%clk 0:00:31.3]} 51.
Kf3 {[%clk 0:00:38.4]} 51... c5 {[%clk 0:00:31.1]} 52. Ke4 {[%clk 0:00:37.6]}
52... Kd6 {[%clk 0:00:31.3]} 53. Ke3 {[%clk 0:00:37.6]} 53... Kd5 {[%clk
0:00:32.2]} 54. Kd3 {[%clk 0:00:37.9]} 54... Ke5 {[%clk 0:00:29.4]} 55. Kc4
{[%clk 0:00:37.7]} 55... Ke4 {[%clk 0:00:29.5]} 56. Kxc5 {[%clk 0:00:37.9]}
56... Kf3 {[%clk 0:00:29.9]} 57. Kd4 {[%clk 0:00:38.5]} 57... Kg2 {[%clk
0:00:20.5]} 58. Ke3 {[%clk 0:00:39.4]} 58... Kxh2 {[%clk 0:00:20.7]} 59. Kf2
{[%clk 0:00:39.5]} 59... Kh1 {[%clk 0:00:21]} 60. Kf1 {[%clk 0:00:39.5]} 60...
h2 {[%clk 0:00:21.3]} 61. Kf2 {[%clk 0:00:37.2]} 1/2-1/2

[Event "*** Titled Tuesday Blitz"]
[Site "Chess.com"]
[Date "2020.04.07"]
[Round "4"]
[White "Gabrielian_Artur"]
[Black "nabukatnezarr"]
[Result "0-1"]
[WhiteElo "2727"]
[BlackElo "2555"]
[TimeControl "180+1"]
[EndTime "13:41:35 PDT"]
[Termination "nabukatnezarr won by resignation"]

1. e4 {[%clk 0:03:00.9]} 1... c5 {[%clk 0:02:59.5]} 2. Nf3 {[%clk 0:02:59.3]}
2... d6 {[%clk 0:02:59.9]} 3. d4 {[%clk 0:02:59.2]} 3... cxd4 {[%clk 0:03:00.8]}
4. Nxd4 {[%clk 0:02:59.8]} 4... Nf6 {[%clk 0:03:01.4]} 5. Nc3 {[%clk 0:03:00.3]}
5... Nc6 {[%clk 0:03:02.1]} 6. Bg5 {[%clk 0:02:58.8]} 6... e6 {[%clk 0:03:02.6]}
7. Qd2 {[%clk 0:02:58.7]} 7... a6 {[%clk 0:03:03]} 8. O-O-O {[%clk 0:02:58.5]}
8... Bd7 {[%clk 0:03:03.6]} 9. f4 {[%clk 0:02:58.8]} 9... b5 {[%clk 0:03:02.9]}
10. Nxc6 {[%clk 0:02:54.7]} 10... Bxc6 {[%clk 0:03:03.1]} 11. Bd3 {[%clk
0:02:54.7]} 11... b4 {[%clk 0:02:59]} 12. Ne2 {[%clk 0:02:54.2]} 12... Qb6
{[%clk 0:02:51.2]} 13. Bxf6 {[%clk 0:02:47]} 13... gxf6 {[%clk 0:02:52.1]} 14.
Kb1 {[%clk 0:02:46.9]} 14... h5 {[%clk 0:02:46.9]} 15. f5 {[%clk 0:02:45.8]}
15... e5 {[%clk 0:02:47]} 16. Bc4 {[%clk 0:02:42.1]} 16... Bxe4 {[%clk
0:02:30.7]} 17. Ng3 {[%clk 0:02:41.2]} 17... Bc6 {[%clk 0:02:24.6]} 18. Bd5
{[%clk 0:02:40.5]} 18... Rc8 {[%clk 0:02:24.1]} 19. Ne4 {[%clk 0:02:37.6]} 19...
Be7 {[%clk 0:02:07.9]} 20. Qe2 {[%clk 0:02:34]} 20... Bd7 {[%clk 0:01:51.5]} 21.
g4 {[%clk 0:02:27]} 21... hxg4 {[%clk 0:01:50.3]} 22. Qxg4 {[%clk 0:02:26.7]}
22... Rf8 {[%clk 0:01:39.3]} 23. h4 {[%clk 0:02:24.7]} 23... Kd8 {[%clk
0:01:32.9]} 24. h5 {[%clk 0:02:20.7]} 24... Kc7 {[%clk 0:01:32.3]} 25. h6 {[%clk
0:02:21.1]} 25... Qe3 {[%clk 0:01:25.4]} 26. h7 {[%clk 0:01:57.2]} 26... Qf4
{[%clk 0:01:21.8]} 27. Qe2 {[%clk 0:01:56.5]} 27... Kb6 {[%clk 0:01:07]} 28.
Rdf1 {[%clk 0:00:57.6]} 28... Bb5 {[%clk 0:00:59]} 29. Rxf4 {[%clk 0:00:53.1]}
29... Bxe2 {[%clk 0:00:58.5]} 30. Rfh4 {[%clk 0:00:47.2]} 30... Rh8 {[%clk
0:00:52.2]} 31. Bxf7 {[%clk 0:00:44.5]} 31... Rcf8 {[%clk 0:00:51.5]} 32. Bd5
{[%clk 0:00:40.3]} 32... Bf3 {[%clk 0:00:40.8]} 33. R1h3 {[%clk 0:00:40]} 33...
Bxe4 {[%clk 0:00:27]} 34. Rxe4 {[%clk 0:00:35.5]} 34... Kc5 {[%clk 0:00:26.3]}
35. Be6 {[%clk 0:00:35.4]} 35... d5 {[%clk 0:00:22.8]} 36. Rg4 {[%clk
0:00:35.4]} 36... d4 {[%clk 0:00:14.3]} 37. Rg8 {[%clk 0:00:32.9]} 37... e4
{[%clk 0:00:12.4]} 38. Rhg3 {[%clk 0:00:30]} 38... Rxh7 {[%clk 0:00:08.2]} 39.
a3 {[%clk 0:00:30]} 39... Rxg8 {[%clk 0:00:06.4]} 40. Rxg8 {[%clk 0:00:29.8]}
40... bxa3 {[%clk 0:00:06.2]} 41. bxa3 {[%clk 0:00:29.4]} 41... Rh1+ {[%clk
0:00:04.7]} 42. Kb2 {[%clk 0:00:29.3]} 42... e3 {[%clk 0:00:05.3]} 43. Rc8+
{[%clk 0:00:28.9]} 43... Kd6 {[%clk 0:00:05.3]} 44. Bc4 {[%clk 0:00:28.3]} 44...
Rh2 {[%clk 0:00:03.2]} 45. Ra8 {[%clk 0:00:27.3]} 45... e2 {[%clk 0:00:03.6]}
46. Rxa6+ {[%clk 0:00:25.5]} 46... Kc5 {[%clk 0:00:03.3]} 47. Re6 {[%clk
0:00:15.1]} 47... Kxc4 {[%clk 0:00:04.2]} 48. Rxe7 {[%clk 0:00:15.3]} 48... d3
{[%clk 0:00:05.1]} 49. cxd3+ {[%clk 0:00:13.6]} 49... Kxd3 {[%clk 0:00:06]} 50.
Kb3 {[%clk 0:00:13.5]} 50... Kd2 {[%clk 0:00:06]} 51. Rd7+ {[%clk 0:00:13.1]}
51... Ke3 {[%clk 0:00:06.1]} 52. Re7+ {[%clk 0:00:13.1]} 52... Kf2 {[%clk
0:00:06.9]} 0-1

[Event "*** Titled Tuesday Blitz"]
[Site "Chess.com"]
[Date "2020.04.07"]
[Round "4"]
[White "Fianchettoed-Tower"]
[Black "FelixJoseYnojosa"]
[Result "0-1"]
[WhiteElo "2370"]
[BlackElo "2642"]
[TimeControl "180+1"]
[EndTime "13:41:35 PDT"]
[Termination "FelixJoseYnojosa won by checkmate"]

1. e4 {[%clk 0:03:00.9]} 1... c5 {[%clk 0:03:00.1]} 2. Nf3 {[%clk 0:03:00.8]}
2... Nc6 {[%clk 0:03:00.8]} 3. Bb5 {[%clk 0:03:01]} 3... e6 {[%clk 0:03:01.2]}
4. O-O {[%clk 0:03:00.5]} 4... Nge7 {[%clk 0:03:01.7]} 5. Re1 {[%clk 0:03:01.1]}
5... Nd4 {[%clk 0:02:58.7]} 6. Nxd4 {[%clk 0:02:54.7]} 6... cxd4 {[%clk
0:02:59.2]} 7. c3 {[%clk 0:02:54.8]} 7... a6 {[%clk 0:02:53]} 8. Bf1 {[%clk
0:02:53.9]} 8... Nc6 {[%clk 0:02:51.4]} 9. d3 {[%clk 0:02:45.9]} 9... Bc5 {[%clk
0:02:50.1]} 10. cxd4 {[%clk 0:02:41]} 10... Bxd4 {[%clk 0:02:48.9]} 11. Nc3
{[%clk 0:02:39.7]} 11... Qb6 {[%clk 0:02:48.4]} 12. Qf3 {[%clk 0:02:22.1]} 12...
O-O {[%clk 0:02:47.3]} 13. Na4 {[%clk 0:02:10.2]} 13... Qa7 {[%clk 0:02:46.9]}
14. Be3 {[%clk 0:02:07.4]} 14... f5 {[%clk 0:02:46.9]} 15. Nc3 {[%clk
0:01:59.6]} 15... fxe4 {[%clk 0:02:42.7]} 16. Qxe4 {[%clk 0:01:58.7]} 16... d5
{[%clk 0:02:42.1]} 17. Qh4 {[%clk 0:01:49.1]} 17... Bxe3 {[%clk 0:02:41.9]} 18.
fxe3 {[%clk 0:01:50]} 18... d4 {[%clk 0:02:42.3]} 19. exd4 {[%clk 0:01:47.5]}
19... Nxd4 {[%clk 0:02:42.3]} 20. Kh1 {[%clk 0:01:29.5]} 20... Nc2 {[%clk
0:02:38]} 21. Ne4 {[%clk 0:01:27.4]} 21... Nxa1 {[%clk 0:02:37.1]} 22. Rxa1
{[%clk 0:01:28.3]} 22... Qd4 {[%clk 0:02:34.3]} 23. Re1 {[%clk 0:01:19.4]} 23...
Bd7 {[%clk 0:02:34.3]} 24. b3 {[%clk 0:01:14.3]} 24... Bc6 {[%clk 0:02:34.1]}
25. h3 {[%clk 0:01:14.1]} 25... Bxe4 {[%clk 0:02:33.4]} 26. dxe4 {[%clk
0:01:14]} 26... b5 {[%clk 0:02:31.8]} 27. Be2 {[%clk 0:01:12.7]} 27... Rac8
{[%clk 0:02:30.9]} 28. Bg4 {[%clk 0:01:11.6]} 28... Qf6 {[%clk 0:02:23.7]} 29.
Qg3 {[%clk 0:01:06.7]} 29... Rce8 {[%clk 0:02:23.8]} 30. e5 {[%clk 0:01:06.8]}
30... Qf4 {[%clk 0:02:23.6]} 31. Qd3 {[%clk 0:01:04.2]} 31... g6 {[%clk
0:02:21.7]} 32. Qd6 {[%clk 0:01:03.3]} 32... Kg7 {[%clk 0:02:11.3]} 33. Bxe6
{[%clk 0:01:01.3]} 33... Qg3 {[%clk 0:02:11.2]} 34. Rg1 {[%clk 0:00:55.2]} 34...
Kh6 {[%clk 0:02:11]} 35. Bd7 {[%clk 0:00:50.5]} 35... Qxe5 {[%clk 0:02:10]} 36.
Qxa6 {[%clk 0:00:46.3]} 36... Rb8 {[%clk 0:02:06.6]} 37. Qc6 {[%clk 0:00:40.6]}
37... b4 {[%clk 0:02:05.4]} 38. Qc1+ {[%clk 0:00:35.3]} 38... Qf4 {[%clk
0:02:05.4]} 39. Qc2 {[%clk 0:00:29.7]} 39... Rbd8 {[%clk 0:02:05.5]} 40. Bc6
{[%clk 0:00:27.2]} 40... Rc8 {[%clk 0:02:05]} 41. Qe4 {[%clk 0:00:26.1]} 41...
Qxe4 {[%clk 0:02:04.9]} 42. Bxe4 {[%clk 0:00:27]} 42... Rf2 {[%clk 0:02:04.1]}
43. Ra1 {[%clk 0:00:24]} 43... Re8 {[%clk 0:02:02.3]} 44. Bf3 {[%clk 0:00:23.5]}
44... Rb2 {[%clk 0:02:02]} 45. a3 {[%clk 0:00:22.9]} 45... Rxb3 {[%clk
0:01:59.8]} 46. axb4 {[%clk 0:00:23.2]} 46... Rxb4 {[%clk 0:02:00.2]} 47. Ra7
{[%clk 0:00:22.7]} 47... Rd8 {[%clk 0:01:58.2]} 48. Kh2 {[%clk 0:00:22.7]} 48...
Rbd4 {[%clk 0:01:58.4]} 49. Ra6 {[%clk 0:00:22.6]} 49... R8d6 {[%clk 0:01:58.3]}
50. Ra7 {[%clk 0:00:22.8]} 50... Rd7 {[%clk 0:01:59]} 51. Ra6 {[%clk 0:00:23.1]}
51... Rc4 {[%clk 0:01:57.6]} 52. Ra3 {[%clk 0:00:21.7]} 52... Rc5 {[%clk
0:01:57.5]} 53. Re3 {[%clk 0:00:21.9]} 53... Kg5 {[%clk 0:01:57.9]} 54. Rb3
{[%clk 0:00:22.2]} 54... h5 {[%clk 0:01:58.5]} 55. Ra3 {[%clk 0:00:21.8]} 55...
h4 {[%clk 0:01:58.9]} 56. Re3 {[%clk 0:00:22.2]} 56... Ra7 {[%clk 0:01:57.9]}
57. Re4 {[%clk 0:00:22.6]} 57... Rh7 {[%clk 0:01:53.7]} 58. Rg4+ {[%clk
0:00:22.5]} 58... Kf6 {[%clk 0:01:54]} 59. Be4 {[%clk 0:00:22.4]} 59... Rh6
{[%clk 0:01:54.4]} 60. Bf3 {[%clk 0:00:21.2]} 60... g5 {[%clk 0:01:54.8]} 61.
Ra4 {[%clk 0:00:20.7]} 61... Ke5 {[%clk 0:01:55.2]} 62. Ra7 {[%clk 0:00:20.5]}
62... Rd6 {[%clk 0:01:54.9]} 63. Rf7 {[%clk 0:00:20.7]} 63... Rf6 {[%clk
0:01:54.4]} 64. Re7+ {[%clk 0:00:20.6]} 64... Kf5 {[%clk 0:01:54.1]} 65. Bg4+
{[%clk 0:00:20.1]} 65... Kf4 {[%clk 0:01:54.2]} 66. Bf3 {[%clk 0:00:19.5]} 66...
Re5 {[%clk 0:01:53.3]} 67. Rg7 {[%clk 0:00:19.3]} 67... Ra5 {[%clk 0:01:52.4]}
68. Rg8 {[%clk 0:00:19.6]} 68... Ra2 {[%clk 0:01:52.4]} 69. Rg7 {[%clk
0:00:19.8]} 69... Ke3 {[%clk 0:01:52.1]} 70. Bb7 {[%clk 0:00:19.3]} 70... Rf1
{[%clk 0:01:49]} 71. Rxg5 {[%clk 0:00:14.4]} 71... Rb2 {[%clk 0:01:46.7]} 72.
Re5+ {[%clk 0:00:14.2]} 72... Kf4 {[%clk 0:01:44.5]} 73. Re4+ {[%clk 0:00:14.5]}
73... Kf5 {[%clk 0:01:44.6]} 74. Re7 {[%clk 0:00:14.3]} 74... Rbb1 {[%clk
0:01:39.9]} 75. g4+ {[%clk 0:00:14.4]} 75... Kf4 {[%clk 0:01:38.6]} 76. Re2
{[%clk 0:00:14.2]} 76... Rxb7 {[%clk 0:01:35.2]} 77. Rg2 {[%clk 0:00:12.3]}
77... Rbb1 {[%clk 0:01:35]} 78. Rg1 {[%clk 0:00:09.2]} 78... Rxg1 {[%clk
0:01:34.6]} 79. g5 {[%clk 0:00:10.1]} 79... Kf3 {[%clk 0:01:33.6]} 80. g6 {[%clk
0:00:10.1]} 80... Rg2# {[%clk 0:01:34.2]} 0-1